Workbook

Sheet LongTerm Budget
A1: 20-Year Budget
A2: Assumptions: | H2: PV | I2: FV (in 20 yrs) | K2: Legend:
A3: Salary Growth Rate: | B3: 0.07 | C3: Nominal Rate of Return: | D3: 0.05 | E3: Estimated annual living expenses during retirment= | H3: 40000 | I3: =(FV($D$5,$U$12,,-$H$3)) -> 72244.44939 | L3: =input cell
A4: % of Income for Living Expenses: | B4: 0.5 | C4: Capital Gains Tax: | D4: 0.15 | E4: Value of investments needed to live off interest= | I4: =(FV($D$5,$U$12,,-H3))/(1-TaxTables!$E$21)/$D$3 -> 1699869.397 | L4: =non-input cell
A5: % Gross Pay for 401K: | B5: =4.5% -> 0.045 | C5: Expected Inflation: | D5: 0.03 | L5: =positive cashflow
A6: % 401K Employer Contribution: | B6: 0.06 | E6: Instructions: | L6: =taxes, expenses
A7: State Tax Rate: | B7: 0.0357 | E7: (1) Insert gross pay in cell B15 | L7: =annual contribution
A8: Mortgage Term: | B8: 30 yr | E8: (2) Adjust input cells (see legend) | L8: =accruing account
A9: Education Debt Repayment Term: | B9: 25 yr | E9: (3) Click "Calculate Take-Home Pay" Button | L9: =sum total
E10: (4) Adjust input cells on all tabs
A11: Age | B11: 33 | C11: 34 | D11: 35 | E11: 36 | F11: 37 | G11: 38 | H11: 39 | I11: 40 | J11: 41 | K11: 42 | L11: 43 | M11: 44 | N11: 45 | O11: 46 | P11: 47 | Q11: 48 | R11: 49 | S11: 50 | T11: 51 | U11: 52
A12: Year # | B12: 1 | C12: 2 | D12: 3 | E12: 4 | F12: 5 | G12: 6 | H12: 7 | I12: 8 | J12: 9 | K12: 10 | L12: 11 | M12: 12 | N12: 13 | O12: 14 | P12: 15 | Q12: 16 | R12: 17 | S12: 18 | T12: 19 | U12: 20
A13: Month Period | B13: June-May | C13: June-May | D13: June-May | E13: June-May | F13: June-May | G13: June-May | H13: June-May | I13: June-May | J13: June-May | K13: June-May | L13: June-May | M13: June-May | N13: June-May | O13: June-May | P13: June-May | Q13: June-May | R13: June-May | S13: June-May | T13: June-May | U13: June-May
A14: Year | B14: 2014 | C14: 2015 | D14: 2016 | E14: 2017 | F14: 2018 | G14: 2019 | H14: 2020 | I14: 2021 | J14: 2022 | K14: 2023 | L14: 2024 | M14: 2025 | N14: 2026 | O14: 2027 | P14: 2028 | Q14: 2029 | R14: 2030 | S14: 2031 | T14: 2032 | U14: 2033
A15: =Calculator!D5 -> Gross Pay: | B15: 100000 | C15: =(B15)*(1+$B$3) -> 107000 | D15: =C15*(1+$B$3) -> 114490 | E15: 122504.3 | F15: 131079.601 | G15: 140255.1731 | H15: 150073.0352 | I15: 160578.1476 | J15: 171818.618 | K15: 183845.9212 | L15: 196715.1357 | M15: 210485.1952 | N15: 225219.1589 | O15: 240984.5 | P15: 257853.415 | Q15: 275903.1541 | R15: 295216.3749 | S15: 315881.5211 | T15: 337993.2276 | U15: 361652.7535
A16: Pretax Deductions: | B16: 13435.893 | C16: 13447.15551 | D16: 14208.2064 | E16: 15022.53084 | F16: 15893.858 | G16: 16826.17806 | H16: 17823.76053 | I16: 18891.17376 | J16: 20033.30593 | K16: 21255.38734 | L16: 22016.01446 | M16: 23415.17547 | N16: 24912.27775 | O16: 25718.17719 | P16: 27432.2096 | Q16: 29266.22427 | R16: 30577.61997 | S16: 32677.38337 | T16: 34343.1302 | U16: 36747.14932
A17: =Calculator!D29 -> FICA Social Security (6.2%) | B17: 6733.75366 | C17: 6740.736416 | D17: 7212.587965 | E17: 7717.469123 | F17: 8257.691962 | G17: 8835.730399 | H17: 9454.231527 | I17: 10116.02773 | J17: 10824.14967 | K17: 11581.84015 | L17: 12392.56896 | M17: 13260.04879 | N17: 14188.25221 | O17: 15181.42986 | P17: 16244.12995 | Q17: 17381.21905 | R17: 18597.90438 | S17: 19899.75769 | T17: 21292.74072 | U17: 22783.23258
A18: =Calculator!D30 -> FICA Medicare (1.45%) | B18: 1574.829485 | C18: 1576.462549 | D18: 1686.814927 | E18: 1804.891972 | F18: 1931.23441 | G18: 2066.420819 | H18: 2211.070276 | I18: 2365.845196 | J18: 2531.454359 | K18: 2708.656165 | L18: 2898.262096 | M18: 3101.140443 | N18: 3318.220274 | O18: 3550.495693 | P18: 3799.030392 | Q18: 4064.962519 | R18: 4349.509895 | S18: 4653.975588 | T18: 4979.753879 | U18: 5328.336651
A19: =Calculator!D31 -> Federal Tax | B19: 8405.345272 | C19: 8419.789442 | D19: 9395.837202 | E19: 10625.34718 | F19: 12487.80898 | G19: 14480.64311 | H19: 16612.97563 | I19: 18894.57142 | J19: 21335.87892 | K19: 23948.07794 | L19: 26879.8809 | M19: 29984.05807 | N19: 33568.12094 | O19: 37625.9482 | P19: 41729.34177 | Q19: 46119.9729 | R19: 51042.23324 | S19: 56966.71566 | T19: 63497.64186 | U19: 70280.58179
A20: =Calculator!D34 -> State & Local Taxes | B20: 2518.122175 | C20: 2521.559887 | D20: 2753.859254 | E20: 3002.419577 | F20: 3268.379122 | G20: 3552.955836 | H20: 3857.452919 | I20: 4183.264799 | J20: 4531.88351 | K20: 4904.90553 | L20: 5323.566992 | M20: 5750.639904 | N20: 6207.607919 | O20: 6724.980896 | P20: 7248.163576 | Q20: 7807.969045 | R20: 8430.201596 | S20: 9071.122876 | T20: 9777.650347 | U20: 10511.44112
A21: Education Loan Repayment | B21: =IF($B$9="10 yr", EducationLoans!$K$16*12, EducationLoans!$L$16*12) -> 5496 | C21: =IF($B$9="10 yr", EducationLoans!$K$16*12, EducationLoans!$L$16*12) -> 5496 | D21: =IF($B$9="10 yr", EducationLoans!$K$16*12, EducationLoans!$L$16*12) -> 5496 | E21: =IF($B$9="10 yr", EducationLoans!$K$16*12, EducationLoans!$L$16*12) -> 5496 | F21: =IF($B$9="10 yr", EducationLoans!$K$16*12, EducationLoans!$L$16*12) -> 5496 | G21: =IF($B$9="10 yr", EducationLoans!$K$16*12, EducationLoans!$L$16*12) -> 5496 | H21: =IF($B$9="10 yr", EducationLoans!$K$16*12, EducationLoans!$L$16*12) -> 5496 | I21: =IF($B$9="10 yr", EducationLoans!$K$16*12, EducationLoans!$L$16*12) -> 5496 | J21: =IF($B$9="10 yr", EducationLoans!$K$16*12, EducationLoans!$L$16*12) -> 5496 | K21: =IF($B$9="10 yr", EducationLoans!$K$16*12, EducationLoans!$L$16*12) -> 5496 | L21: =IF($B$9="10 yr", 0, EducationLoans!$L$16*12) -> 5496 | M21: =IF($B$9="10 yr", 0, EducationLoans!$L$16*12) -> 5496 | N21: =IF($B$9="10 yr", 0, EducationLoans!$L$16*12) -> 5496 | O21: =IF($B$9="10 yr", 0, EducationLoans!$L$16*12) -> 5496 | P21: =IF($B$9="10 yr", 0, EducationLoans!$L$16*12) -> 5496 | Q21: =IF($B$9="10 yr", 0, EducationLoans!$L$16*12) -> 5496 | R21: =IF($B$9="10 yr", 0, EducationLoans!$L$16*12) -> 5496 | S21: =IF($B$9="10 yr", 0, EducationLoans!$L$16*12) -> 5496 | T21: =IF($B$9="10 yr", 0, EducationLoans!$L$16*12) -> 5496 | U21: =IF($B$9="10 yr", 0, EducationLoans!$L$16*12) -> 5496
A22: =Calculator!D28 -> NET Take-Home Pay | B22: 71053.58456 | C22: 71123.38132 | D22: 75839.81533 | E22: 80701.26086 | F22: 85356.12145 | G22: 90336.82227 | H22: 95666.17215 | I22: 101368.5765 | J22: 107470.1492 | K22: 113998.832 | L22: 121375.2446 | M22: 128736.463 | N22: 136350.3734 | O22: 145041.9604 | P22: 153759.1264 | Q22: 163086.494 | R22: 173470.2516 | S22: 183251.506 | T22: 194085.9764 | U22: 205284.5345
A23: Allocated for Living Expenses (-housing) | B23: =(B22+B27+B25+(B21*EducationLoans!$K$14))*$B$4 -> 39141.14385 | C23: =(C22+C27+C25+(C21*EducationLoans!$K$14))*$B$4 -> 39178.5763 | D23: =(D22+D27+D25+(D21*EducationLoans!$K$14))*$B$4 -> 41708.02975 | E23: =(E22+E27+E25+(E21*EducationLoans!$K$14))*$B$4 -> 44321.97552 | F23: =(F22+F27+F25+(F21*EducationLoans!$K$14))*$B$4 -> 46845.45442 | G23: =(G22+G27+G25+(G21*EducationLoans!$K$14))*$B$4 -> 49545.57685 | H23: =(H22+H27+H25+(H21*EducationLoans!$K$14))*$B$4 -> 52434.70785 | I23: =(I22+I27+I25+(I21*EducationLoans!$K$14))*$B$4 -> 55526.07801 | J23: =(J22+J27+J25+(J21*EducationLoans!$K$14))*$B$4 -> 58833.84409 | K23: =(K22+K27+K25+(K21*EducationLoans!$K$14))*$B$4 -> 62373.1538 | L23: =(L22+L27+L25+(L21*EducationLoans!$K$14))*$B$4 -> 66355.57623 | M23: =(M22+M27+M25+(M21*EducationLoans!$K$14))*$B$4 -> 70350.99665 | N23: =(N22+N27+N25+(N21*EducationLoans!$K$14))*$B$4 -> 74494.79986 | O23: =(O22+O27+O25+(O21*EducationLoans!$K$14))*$B$4 -> 78803.06616 | P23: =(P22+P27+P25+(P21*EducationLoans!$K$14))*$B$4 -> 83547.30646 | Q23: =(Q22+Q27+Q25+(Q21*EducationLoans!$K$14))*$B$4 -> 88623.64357 | R23: =(R22+R27+R25+(R21*EducationLoans!$K$14))*$B$4 -> 93931.47361 | S23: =(S22+S27+S25+(S21*EducationLoans!$K$14))*$B$4 -> 99294.54754 | T23: =(T22+T27+T25+(T21*EducationLoans!$K$14))*$B$4 -> 104926.8285 | U23: =(U22+U27+U25+(U21*EducationLoans!$K$14))*$B$4 -> 111067.0118
A24: Allocated for Investment | B24: =(B22+B27+B25+(B21*EducationLoans!$K$14))*(1-$B$4) -> 39141.14385 | C24: =(C22+C27+C25+(C21*EducationLoans!$K$14))*(1-$B$4) -> 39178.5763 | D24: =(D22+D27+D25+(D21*EducationLoans!$K$14))*(1-$B$4) -> 41708.02975 | E24: =(E22+E27+E25+(E21*EducationLoans!$K$14))*(1-$B$4) -> 44321.97552 | F24: =(F22+F27+F25+(F21*EducationLoans!$K$14))*(1-$B$4) -> 46845.45442 | G24: =(G22+G27+G25+(G21*EducationLoans!$K$14))*(1-$B$4) -> 49545.57685 | H24: =(H22+H27+H25+(H21*EducationLoans!$K$14))*(1-$B$4) -> 52434.70785 | I24: =(I22+I27+I25+(I21*EducationLoans!$K$14))*(1-$B$4) -> 55526.07801 | J24: =(J22+J27+J25+(J21*EducationLoans!$K$14))*(1-$B$4) -> 58833.84409 | K24: =(K22+K27+K25+(K21*EducationLoans!$K$14))*(1-$B$4) -> 62373.1538 | L24: =(L22+L27+L25+(L21*EducationLoans!$K$14))*(1-$B$4) -> 66355.57623 | M24: =(M22+M27+M25+(M21*EducationLoans!$K$14))*(1-$B$4) -> 70350.99665 | N24: =(N22+N27+N25+(N21*EducationLoans!$K$14))*(1-$B$4) -> 74494.79986 | O24: =(O22+O27+O25+(O21*EducationLoans!$K$14))*(1-$B$4) -> 78803.06616 | P24: =(P22+P27+P25+(P21*EducationLoans!$K$14))*(1-$B$4) -> 83547.30646 | Q24: =(Q22+Q27+Q25+(Q21*EducationLoans!$K$14))*(1-$B$4) -> 88623.64357 | R24: =(R22+R27+R25+(R21*EducationLoans!$K$14))*(1-$B$4) -> 93931.47361 | S24: =(S22+S27+S25+(S21*EducationLoans!$K$14))*(1-$B$4) -> 99294.54754 | T24: =(T22+T27+T25+(T21*EducationLoans!$K$14))*(1-$B$4) -> 104926.8285 | U24: =(U22+U27+U25+(U21*EducationLoans!$K$14))*(1-$B$4) -> 111067.0118
A25: Mission Investments | B25: =-SUM(Missions!$G$5:$G$7) -> 2028.0293 | C25: =-SUM(Missions!$G$5:$G$7) -> 2028.0293 | D25: =-SUM(Missions!$G$5:$G$7) -> 2028.0293 | E25: =-SUM(Missions!$G$5:$G$7) -> 2028.0293 | F25: =-SUM(Missions!$G$5:$G$7) -> 2028.0293 | G25: =-SUM(Missions!$G$5:$G$7) -> 2028.0293 | H25: =-SUM(Missions!$G$5:$G$7) -> 2028.0293 | I25: =-SUM(Missions!$G$5:$G$7) -> 2028.0293 | J25: =-SUM(Missions!$G$5:$G$7) -> 2028.0293 | K25: =-SUM(Missions!$G$5:$G$7) -> 2028.0293 | L25: =-SUM(Missions!$G$5:$G$7) -> 2028.0293 | M25: =-SUM(Missions!$G$5:$G$7) -> 2028.0293 | N25: =-SUM(Missions!$G$5:$G$7) -> 2028.0293 | O25: =-SUM(Missions!$G$6:$G$7) -> 1232.120233 | P25: =-SUM(Missions!$G$6:$G$7) -> 1232.120233 | Q25: =-SUM(Missions!$G$6:$G$7) -> 1232.120233 | R25: =-Missions!$G$7 -> 580.9446152 | S25: =-Missions!$G$7 -> 580.9446152 | T25: 0 | U25: 0
A26: 529 Plan | B26: =SUM('529'!$D$9:$F$9) -> 17114.46715 | C26: =SUM('529'!$D$9:$F$9) -> 17114.46715 | D26: =SUM('529'!$D$9:$F$9) -> 17114.46715 | E26: =SUM('529'!$D$9:$F$9) -> 17114.46715 | F26: =SUM('529'!$D$9:$F$9) -> 17114.46715 | G26: =SUM('529'!$D$9:$F$9) -> 17114.46715 | H26: =SUM('529'!$D$9:$F$9) -> 17114.46715 | I26: =SUM('529'!$D$9:$F$9) -> 17114.46715 | J26: =SUM('529'!$D$9:$F$9) -> 17114.46715 | K26: =SUM('529'!$D$9:$F$9) -> 17114.46715 | L26: =SUM('529'!$D$9:$F$9) -> 17114.46715 | M26: =SUM('529'!$D$9:$F$9) -> 17114.46715 | N26: =SUM('529'!$D$9:$F$9) -> 17114.46715 | O26: =SUM('529'!$D$9:$F$9) -> 17114.46715 | P26: =SUM('529'!$E$9:$F$9) -> 10916.17113 | Q26: =SUM('529'!$E$9:$F$9) -> 10916.17113 | R26: =SUM('529'!$E$9:$F$9) -> 10916.17113 | S26: =SUM('529'!$F$9) -> 5308.819138 | T26: =SUM('529'!$F$9) -> 5308.819138 | U26: 0
A27: 401K (Self Contribution) | B27: 4887.40185 | C27: 4892.469979 | D27: 5234.942878 | E27: 5601.38888 | F27: 5993.486101 | G27: 6413.030128 | H27: 6861.942237 | I27: 7342.278194 | J27: 7856.237667 | K27: 8406.174304 | L27: 8994.606505 | M27: 9624.228961 | N27: 10297.92499 | O27: 11018.77974 | P27: 11790.09432 | Q27: 12615.40092 | R27: 13498.47899 | S27: 14443.37251 | T27: 15454.40859 | U27: 16536.21719
A28: 30-yr Mortgage ($170K house) | B28: =IF($B$8="30 yr",Mortgage!$D$6*12+Mortgage!D7,Mortgage!$E$6*12+Mortgage!E7) -> 9192 | C28: =IF($B$8="30 yr",Mortgage!$D$6*12,Mortgage!$E$6*12) -> 7980 | D28: =IF($B$8="30 yr",Mortgage!$D$6*12,Mortgage!$E$6*12) -> 7980 | E28: =IF($B$8="30 yr",Mortgage!$D$6*12,Mortgage!$E$6*12) -> 7980 | F28: =IF($B$8="30 yr",Mortgage!$D$6*12,Mortgage!$E$6*12) -> 7980 | G28: =IF($B$8="30 yr",Mortgage!$D$6*12,Mortgage!$E$6*12) -> 7980 | H28: =IF($B$8="30 yr",Mortgage!$D$6*12,Mortgage!$E$6*12) -> 7980 | I28: =IF($B$8="30 yr",Mortgage!$D$6*12,Mortgage!$E$6*12) -> 7980 | J28: =IF($B$8="30 yr",Mortgage!$D$6*12,Mortgage!$E$6*12) -> 7980 | K28: =IF($B$8="30 yr",Mortgage!$D$6*12,Mortgage!$E$6*12) -> 7980 | L28: =IF($B$8="30 yr",Mortgage!$D$6*12,Mortgage!$E$6*12) -> 7980 | M28: =IF($B$8="30 yr",Mortgage!$D$6*12,Mortgage!$E$6*12) -> 7980 | N28: =IF($B$8="30 yr",Mortgage!$D$6*12,Mortgage!$E$6*12) -> 7980 | O28: =IF($B$8="30 yr",Mortgage!$D$6*12,Mortgage!$E$6*12) -> 7980 | P28: =IF($B$8="30 yr",Mortgage!$D$6*12,Mortgage!$E$6*12) -> 7980 | Q28: =IF($B$8="30 yr",Mortgage!$D$6*12,0) -> 7980 | R28: =IF($B$8="30 yr",Mortgage!$D$6*12,0) -> 7980 | S28: =IF($B$8="30 yr",Mortgage!$D$6*12,0) -> 7980 | T28: =IF($B$8="30 yr",Mortgage!$D$6*12,0) -> 7980 | U28: =IF($B$8="30 yr",Mortgage!$D$6*12,0) -> 7980
A29: Residual Cash for Investing | B29: =B24-(B27+B25+B28+B21+'Life Insurance'!$E$5) -> 15994.4127 | C29: =C24-(C27+C25+C28+C21+'Life Insurance'!$E$5) -> 17238.77702 | D29: =D24-(D27+D25+D28+D21+'Life Insurance'!$E$5) -> 19425.75758 | E29: =E24-(E27+E25+E28+E21+'Life Insurance'!$E$5) -> 21673.25734 | F29: =F24-(F27+F25+F28+F21+'Life Insurance'!$E$5) -> 23804.63902 | G29: =G24-(G27+G25+G28+G21+'Life Insurance'!$E$5) -> 26085.21742 | H29: =H24-(H27+H25+H28+H21+'Life Insurance'!$E$5) -> 28525.43631 | I29: =I24-(I27+I25+I28+I21+'Life Insurance'!$E$5) -> 31136.47052 | J29: =J24-(J27+J25+J28+J21+'Life Insurance'!$E$5) -> 33930.27712 | K29: =K24-(K27+K25+K28+K21+'Life Insurance'!$E$5) -> 36919.65019 | L29: =L24-(L27+L25+L28+L21+'Life Insurance'!$E$5) -> 40313.64042 | M29: =M24-(M27+M25+M28+M21+'Life Insurance'!$E$5) -> 43679.43839 | N29: =N24-(N27+N25+N28+N21+'Life Insurance'!$E$5) -> 47149.54557 | O29: =O24-(O27+O25+O28+O21+'Life Insurance'!$E$5) -> 51532.86619 | P29: =P24-(P27+P25+P28+P21+'Life Insurance'!$E$5) -> 55505.7919 | Q29: =Q24-(Q27+Q25+Q28+Q21+'Life Insurance'!$E$5) -> 59756.82242 | R29: =R24-(R27+R25+R28+R21+'Life Insurance'!$E$5) -> 64832.75001 | S29: =S24-(S27+S25+S28+S21+'Life Insurance'!$E$5) -> 69250.93041 | T29: =T24-(T27+T25+T28+T21+'Life Insurance'!$E$5) -> 74453.11991 | U29: =U24-(U27+U25+U28+U21+'Life Insurance'!$E$5) -> 79511.49465
A30: Full Life Insurance (Cash Value) | B30: =('Life Insurance'!$E$5+'Life Insurance'!$E$4)*(1+('Life Insurance'!$L$22+('Life Insurance'!$M$23*(B12-1)))) -> 11947.58499 | C30: =('Life Insurance'!$E$5+B30)*(1+('Life Insurance'!$L$22+('Life Insurance'!$M$23*(B12-1)))) -> 14209.57703 | D30: =('Life Insurance'!$E$5+C30)*(1+('Life Insurance'!$L$22+('Life Insurance'!$M$23*(C12-1)))) -> 16663.1501 | E30: =('Life Insurance'!$E$5+D30)*(1+('Life Insurance'!$L$22+('Life Insurance'!$M$23*(D12-1)))) -> 19340.65195 | F30: =('Life Insurance'!$E$5+E30)*(1+('Life Insurance'!$L$22+('Life Insurance'!$M$23*(E12-1)))) -> 22279.18474 | G30: =('Life Insurance'!$E$5+F30)*(1+('Life Insurance'!$L$22+('Life Insurance'!$M$23*(F12-1)))) -> 25521.52802 | H30: =('Life Insurance'!$E$5+G30)*(1+('Life Insurance'!$L$22+('Life Insurance'!$M$23*(G12-1)))) -> 29117.23887 | I30: =('Life Insurance'!$E$5+H30)*(1+('Life Insurance'!$L$22+('Life Insurance'!$M$23*(H12-1)))) -> 33123.96853 | J30: =('Life Insurance'!$E$5+I30)*(1+('Life Insurance'!$L$22+('Life Insurance'!$M$23*(I12-1)))) -> 37609.04374 | K30: =('Life Insurance'!$E$5+J30)*(1+('Life Insurance'!$L$22+('Life Insurance'!$M$23*(J12-1)))) -> 42651.37192 | L30: =('Life Insurance'!$E$5+K30)*(1+('Life Insurance'!$L$22+('Life Insurance'!$M$23*(K12-1)))) -> 48343.74356 | M30: =('Life Insurance'!$E$5+L30)*(1+('Life Insurance'!$L$22+('Life Insurance'!$M$23*(L12-1)))) -> 54795.62237 | N30: =('Life Insurance'!$E$5+M30)*(1+('Life Insurance'!$L$22+('Life Insurance'!$M$23*(M12-1)))) -> 62136.53579 | O30: =('Life Insurance'!$E$5+N30)*(1+('Life Insurance'!$L$22+('Life Insurance'!$M$23*(N12-1)))) -> 70520.20591 | P30: =('Life Insurance'!$E$5+O30)*(1+('Life Insurance'!$L$22+('Life Insurance'!$M$23*(O12-1)))) -> 80129.59531 | Q30: =('Life Insurance'!$E$5+P30)*(1+('Life Insurance'!$L$22+('Life Insurance'!$M$23*(P12-1)))) -> 91183.08639 | R30: =('Life Insurance'!$E$5+Q30)*(1+('Life Insurance'!$L$22+('Life Insurance'!$M$23*(Q12-1)))) -> 103942.0678 | S30: =('Life Insurance'!$E$5+R30)*(1+('Life Insurance'!$L$22+('Life Insurance'!$M$23*(R12-1)))) -> 118720.2717 | T30: =('Life Insurance'!$E$5+S30)*(1+('Life Insurance'!$L$22+('Life Insurance'!$M$23*(S12-1)))) -> 135895.295 | U30: =('Life Insurance'!$E$5+T30)*(1+('Life Insurance'!$L$22+('Life Insurance'!$M$23*(T12-1)))) -> 155922.8513
A31: Accruing Invest. Value | B31: =B29*(1+$D$3) -> 16794.13334 | C31: =(B31+C29)*(1+$D$3) -> 35734.55588 | D31: =(D29+C31)*(1+$D$3) -> 57918.32912 | E31: 83571.16579 | F31: 112744.5951 | G31: 145771.3031 | H31: 183011.5764 | I31: 224855.4492 | J31: 271725.0127 | K31: 324076.896 | L31: 382610.0633 | M31: 447603.9767 | N31: 519491.1984 | O31: 599575.2679 | P31: 687835.1127 | Q31: 784971.5319 | R31: 892294.496 | S31: 1009622.698 | T31: 1138279.609 | U31: 1278680.658
A32: Accruing 401K Value | B32: =(B27+(B15*$B$6))*(1+$D$3) -> 11431.77194 | C32: =(B32+C27+(C15*$B$6))*(1+$D$3) -> 23881.45402 | D32: 37785.08674 | E32: 53273.5703 | F32: 70488.42409 | G32: 89582.60283 | H32: 110721.3735 | I32: 134083.2576 | J32: 159861.043 | K32: 188262.8712 | L32: 219513.4051 | M32: 253855.0831 | N32: 291549.4655 | O32: 332878.681 | P32: 378146.9792 | Q32: 427682.3979 | R32: 481838.5523 | S32: 540996.5569 | T32: 605567.0871 | U32: 675992.593
A33: Accruing Value of Investments to Live Off | B33: =B31+B32+B30 -> 40173.49028 | C33: 73825.58692 | D33: 112366.566 | E33: 156185.388 | F33: 205512.2039 | G33: 260875.434 | H33: 322850.1888 | I33: 392062.6754 | J33: =J31+J32+J30 -> 469195.0994 | K33: =K31+K32+K30 -> 554991.1391 | L33: 650467.212 | M33: 756254.6822 | N33: 873177.1997 | O33: 1002974.155 | P33: 1146111.687 | Q33: 1303837.016 | R33: 1478075.116 | S33: 1669339.526 | T33: 1879741.991 | U33: 2110596.103

Sheet Life Insurance
A1: Full Life Insurance Policy Paid Up at Age 96
C3: 2011 | D3: 2012 | E3: 2013 | H3: Dividend | I3: Base Cash Value | J3: Cash Value of Adds | K3: Net Cash Value | L3: ∆ Cash Value | M3: ∆ in ∆ of Cash Value
B4: Cash Value | C4: 6616 | D4: 8174 | E4: 9800 | G4: 1 | H4: 36 | I4: 2035 | J4: 378 | K4: =I4+J4 -> 2413 | L4: =H4/K4 -> 0.01491918773 | M4: =L5-L4 -> -0.004243980901
B5: Annual Contribution: | C5: =771.65*2 -> 1543.3 | D5: =771.65*2 -> 1543.3 | E5: 1543.3 | G5: 2 | H5: 40 | I5: 3216 | J5: 531 | K5: =I5+J5 -> 3747 | L5: =H5/K5 -> 0.01067520683 | M5: =L6-L5 -> -0.002121552089
B6: Death Benefit | C6: 159470 | D6: 160366 | E6: 161268 | G6: 3 | H6: 44 | I6: 4448 | J6: 696 | K6: 5144 | L6: 0.008553654743 | M6: -0.001167462401
G7: 4 | H7: 49 | I7: 5735 | J7: 899 | K7: 6634 | L7: 0.007386192342 | M7: 0.002703766325
G8: 5 | H8: 83 | I8: 7073 | J8: 1153 | K8: 8226 | L8: 0.01008995867 | M8: 0.002706011106
G9: 6 | H9: 127 | I9: 8463 | J9: 1462 | K9: 9925 | L9: 0.01279596977 | M9: 0.001943742249
G10: 7 | H10: 173 | I10: 9905 | J10: 1832 | K10: 11737 | L10: 0.01473971202 | M10: 0.0009888815739
G11: 8 | H11: 223 | I11: 11400 | J11: 2778 | K11: 14178 | L11: 0.0157285936 | M11: 0.00131302965
G12: 9 | H12: 278 | I12: 12946 | J12: 3367 | K12: 16313 | L12: 0.01704162325 | M12: 0.0009826961349
G13: 10 | H13: 335 | I13: 14543 | J13: 4043 | K13: 18586 | L13: 0.01802431938 | M13: 0.000970253599
G14: 11 | H14: 399 | I14: 16192 | J14: 4814 | K14: 21006 | L14: 0.01899457298 | M14: 0.0007403188177
G15: 12 | H15: 466 | I15: 17892 | J15: 5721 | K15: 23613 | L15: 0.0197348918 | M15: 0.0006006253008
G16: 13 | H16: 537 | I16: 19634 | J16: 6773 | K16: 26407 | L16: 0.0203355171 | M16: 0.001720557669
G17: 14 | H17: 649 | I17: 21441 | J17: 7984 | K17: 29425 | L17: 0.02205607477 | M17: 0.001371376694
G18: 15 | H18: 765 | I18: 23288 | J18: 9366 | K18: 32654 | L18: 0.02342745146 | M18: 0.001214001554
G19: 16 | H19: 890 | I19: 25185 | J19: 10933 | K19: 36118 | L19: 0.02464145302 | M19: 0.001074267728
G20: 17 | H20: 1024 | I20: 27128 | J20: 12692 | K20: 39820 | L20: 0.02571572074 | M20: =L22-L20 -> 0.02755669502
G21: 18 | H21: 1166 | I21: 29118 | J21: 14657 | K21: 43775
J22: Avg Annual ∆ Cash Value = | L22: =H21/K21*2 -> 0.05327241576
J23: Avg Annual ∆ in ∆ of Cash Value = | M23: =AVERAGE(M4:M20)*2 -> 0.004512144474

Sheet 529
A1: College Savings Plans
D3: Clark | E3: Cayson | F3: Baby
C4: Current Annual Cost of Attendence | D4: 17470 | E4: 17470 | F4: 17470
C5: Years Until College | D5: 13 | E5: 16 | F5: 18
C6: # Years in College | D6: 4 | E6: 4 | F6: 4
C7: Annual Increase in College Costs | D7: 0.05 | E7: 0.05 | F7: 0.05
C8: % of College Covered by Investment: | D8: 1 | E8: 1 | F8: 1
C9: Annual Contribution to 529 | D9: =-PMT('LongTerm Budget'!$D$3,D5+D6,,FV(D7,D5+D6,,-D4*D6*D8),0) -> 6198.296024 | E9: =-PMT('LongTerm Budget'!$D$3,E5+E6,,FV(E7,E5+E6,,-E4*E6*E8),0) -> 5607.351993 | F9: =-PMT('LongTerm Budget'!$D$3,F5+F6,,FV(F7,F5+F6,,-F4*F6*F8),0) -> 5308.819138
A11: http://www.savingforcollege.com/college-savings-calculator/index.php?current_cost=22826&years_until_college=13&years_attendance=4&attendance_rate=100&coverage_rate=100&save_until=ends&starting_balance=0&contribution_rate=1&inflation_rate=5&investment_performance=6&page=results

Sheet EducationLoans
A1: Education Loan Repayment
A2: Please click on number in first column to see details
B3: Type of Loan | C3: Loan Amount | D3: Loan Date | E3: Disbursed Amount | F3: Canceled Amount | G3: Outstanding Principal | H3: Outstanding Interest | J3: Repayment Plan | K3: Repayment Period | L3: Monthly Payment | N3: Projected Loan Forgiveness | O3: Total Interest Paid | P3: Total Amount Paid
A4: 1 | B4: DIRECT STAFFORD UNSUBSIDIZED | C4: 0 | D4: 2013-08-27 | E4: 0 | F4: 0 | G4: 0 | H4: 0 | L4: Initial to Final Amounts
A5: 2 | B5: DIRECT CONSOLIDATED UNSUBSIDIZED | C5: 0 | D5: 2012-09-07 | E5: 0 | F5: 0 | G5: 0 | H5: 0 | J5: Standard* | K5: 120 months | L5: 800 | M5: to $800 | N5: - | O5: 0 | P5: 0
A6: 3 | B6: DIRECT CONSOLIDATED SUBSIDIZED | C6: 0 | D6: 2012-09-07 | E6: 0 | F6: 0 | G6: 0 | H6: 0 | J6: Graduated* | K6: 120 months | L6: 456 | M6: to $1,369 | N6: - | O6: 0 | P6: 0
A7: 4 | B7: DIRECT STAFFORD UNSUBSIDIZED | C7: 0 | D7: 2012-08-17 | E7: 0 | F7: 0 | G7: 0 | H7: 0 | J7: Extended Fixed | K7: 300 months | L7: 458 | M7: to $458 | N7: - | O7: 0 | P7: 0
A8: 5 | B8: DIRECT STAFFORD UNSUBSIDIZED | C8: 0 | D8: 2011-11-10 | E8: 0 | F8: 0 | G8: 0 | H8: 0 | J8: Extended Graduated | K8: 300 months | L8: 348 | M8: to $703 | N8: - | O8: 0 | P8: 0
A9: 6 | B9: DIRECT STAFFORD SUBSIDIZED | C9: 0 | D9: 2011-08-19 | E9: 0 | F9: 0 | G9: 0 | H9: 0 | J9: Pay As You Earn** | K9: 145 months | L9: 508 | M9: to $738 | N9: 0 | O9: 0 | P9: 0
A10: 7 | B10: STAFFORD UNSUBSIDIZED | C10: 0 | D10: 2007-02-23 | E10: 0 | F10: 0 | G10: 0 | H10: 0 | J10: Income-Based Repayment (IBR)** | K10: - | L10: - | M10: to - | N10: - | O10: - | P10: -
A11: 8 | B11: STAFFORD SUBSIDIZED | C11: 0 | D11: 2007-01-22 | E11: 0 | F11: 0 | G11: 0 | H11: 0 | J11: Income-Contingent Repayment (ICR)** | K11: 98 months | L11: 824 | M11: to $926 | N11: 0 | O11: 17819 | P11: 84610
A12: 9 | B12: STAFFORD SUBSIDIZED | C12: 0 | D12: 2006-11-09 | E12: 0 | F12: 0 | G12: 0 | H12: 0
A13: 10 | B13: STAFFORD SUBSIDIZED | C13: 0 | D13: 2006-09-15 | E13: 0 | F13: 0 | G13: 0 | H13: 0 | J13: Your Loan Balance | K13: 72973
A14: 11 | B14: STAFFORD SUBSIDIZED | C14: 0 | D14: 2006-09-06 | E14: 0 | F14: 0 | G14: 0 | H14: 0 | J14: Interest Rate | K14: 0.057
A15: 12 | B15: STAFFORD SUBSIDIZED | C15: 0 | D15: 2005-08-31 | E15: 0 | F15: 0 | G15: 0 | H15: 0 | J15: Loan Terms | K15: 10 yr | L15: 25 yr
A16: 13 | B16: FFEL CONSOLIDATED | C16: 0 | D16: 2005-08-17 | E16: 0 | F16: 0 | G16: 0 | H16: 0 | J16: Montlhly Installment | K16: 800 | L16: 458
A17: 14 | B17: FFEL CONSOLIDATED | C17: 0 | D17: 2005-08-17 | E17: 0 | F17: 0 | G17: 0 | H17: 0
A18: 15 | B18: STAFFORD UNSUBSIDIZED | C18: 0 | D18: 2005-01-18 | E18: 0 | F18: 0 | G18: 0 | H18: 0
A19: 16 | B19: STAFFORD SUBSIDIZED | C19: 0 | D19: 2003-05-19 | E19: 0 | F19: 0 | G19: 0 | H19: 0
A20: Total DIRECT STAFFORD UNSUBSIDIZED | G20: 0 | H20: 0
A21: Total DIRECT CONSOLIDATED UNSUBSIDIZED | G21: 0 | H21: 0
A22: Total DIRECT CONSOLIDATED SUBSIDIZED | G22: 0 | H22: 0
A23: Total DIRECT STAFFORD SUBSIDIZED | G23: 0 | H23: 0
A24: Total STAFFORD UNSUBSIDIZED | G24: 0 | H24: 0
A25: Total STAFFORD SUBSIDIZED | G25: 0 | H25: 0
A26: Total FFEL CONSOLIDATED | G26: 0 | H26: 0
A27: Total All Loans | G27: 0 | H27: 0

Sheet Mortgage
A1: Mortgage
C3: Mortgage Type: | D3: 30 yr | E3: 15 yr
C4: Down Payment: | D4: =((1/3)*'LongTerm Budget'!B24)+8000+(14000*0.7) -> 30847.04795 | E4: =D4 -> 30847.04795
C5: Annualized Interest: | D5: 0.0425 | E5: 0.0325
C6: Monthly Payment: | D6: 665 | E6: 949
C7: Fees: | D7: 1212 | E7: 1043
C8: www.zillow.com

Sheet Missions
A1: LDS Mission Savings
F3: Current 2-yr Mission Price: | G3: 9600
E4: Age | F4: FV of Mission Price: | G4: Annual Savings Required:
D5: Clark | E5: 5 | F5: =FV('LongTerm Budget'!$D$5,18-E5,,-$G$3) -> 14097.92365 | G5: =PMT('LongTerm Budget'!$D$3,18-E5,,F5) -> -795.9090669
D6: Cayson | E6: 2 | F6: =FV('LongTerm Budget'!$D$5,18-E6,,-$G$3) -> 15405.18182 | G6: =PMT('LongTerm Budget'!$D$3,18-E6,,F6) -> -651.1756177
D7: Baby | E7: 0 | F7: =FV('LongTerm Budget'!$D$5,18-E7,,-$G$3) -> 16343.35739 | G7: =PMT('LongTerm Budget'!$D$3,18-E7,,F7) -> -580.9446152

Sheet Calculator
A1: Paycheck Calculator (no input necessary)
D3: For Wages Paid in 2014
D4: Gross Pay
D5: Gross Pay: | E5: 367471.4932
D6: Pay Period: | E6: Annually
D7: Periods Per Year: | E7: =INDEX(TaxTables!$D$32:$D$38,MATCH(E6,TaxTables!$C$32:$C$38,0)) -> 1
D8: Est. Gross Annual Pay: | E8: =E5*E7 -> 367471.4932
D10: Filing Status and Withholdings
D11: Filing Status: | E11: Married
D12: Number of Allowances: | E12: 5
D13: One Allowance: | E13: =INDEX(TaxTables!$E$32:$E$38,MATCH(E6,TaxTables!$C$32:$C$38,0)) -> 3950
D14: Pre-Tax Adjustments
D15: Tax Deferral Plan, 401(k): | E15: ='LongTerm Budget'!B5 -> 0.045
D16: Other Pre-Tax Deductions: | E16: 36747.14932
D17: Federal Taxable Gross: | E17: =MAX(0,E5-E12*E13-E15*E5-E16) -> 294438.1266
D18: Federal Withholding Tables
D19: Excess Over | E19: =IF(E$11="single",INDEX(TaxTables!$C$9:$C$16,MATCH(E$17*E$7,TaxTables!$C$9:$C$16,1)),INDEX(TaxTables!$C$19:$C$26,MATCH(E$17*E$7,TaxTables!$C$19:$C$26,1))) -> 235300
D20: Withhold | E20: =IF(E$11="single",INDEX(TaxTables!$D$9:$D$16,MATCH(E$17*E$7,TaxTables!$C$9:$C$16,1)),INDEX(TaxTables!$D$19:$D$26,MATCH(E$17*E$7,TaxTables!$C$19:$C$26,1))) -> 50765
D21: Plus X% of Excess | E21: =IF(E$11="single",INDEX(TaxTables!$E$9:$E$16,MATCH(E$17*E$7,TaxTables!$C$9:$C$16,1)),INDEX(TaxTables!$E$19:$E$26,MATCH(E$17*E$7,TaxTables!$C$19:$C$26,1))) -> 0.33
D22: Post-Tax Adjustments
D23: State & Local Taxes: | E23: ='LongTerm Budget'!B7 -> 0.0357
D24: Other Post-Tax Deductions: | E24: 0
D25: Post-Tax Reimbursements: | E25: 0
D27: Estimated Pay Check
D28: NET Take-Home Pay | E28: =E5-SUM(E29:E35)+E36 -> 205284.5345
D29: FICA Social Security (6.2%) | E29: =E5*6.2% -> 22783.23258
D30: FICA Medicare (1.45%) | E30: =E5*1.45% -> 5328.336651
D31: Federal Tax | E31: =(E20+E21*(E17*E7-E19))/E7 -> 70280.58179
D32: Tax Deferral Plan | E32: =E15*E5 -> 16536.21719
D33: Pre-Tax Deductions | E33: =E16 -> 36747.14932
D34: State & Local Taxes | E34: =E17*E23 -> 10511.44112
D35: Post-Tax Deductions | E35: =E24 -> 0
D36: Post-Tax Reimbursements | E36: =E25 -> 0

Sheet Sheet4

Sheet TaxTables
A1: Federal Tax Tables (no input necessary)
A3: These tables are used to estimate the federal tax withholding and need to be updated each year. The federal tax is calculated by multiplying the Federal Taxable Gross by the number of payments per year, then using the ANNUAL Table to calculate the withholding. The Federal Taxable Gross is the Gross Pay minus the Allowances minus the pre-tax withholdings and deductions.
A5: 2014 ANNUAL Table for Percentage Method for Income Tax Withholding
A7: Source: IRS Publication 15, Table 7, pg 44 | C7: SINGLE
A8: http://www.irs.gov/pub/irs-pdf/p15.pdf | C8: Excess over | D8: Withhold | E8: Percent
C9: 0 | D9: 0 | E9: 0
C10: 2250 | D10: 0 | E10: 0.1
C11: 11325 | D11: 907.5 | E11: 0.15
C12: 39150 | D12: 5081.25 | E12: 0.25
C13: 91600 | D13: 18193.75 | E13: 0.28
C14: 188600 | D14: 45353.75 | E14: 0.33
C15: 407350 | D15: 117541.25 | E15: 0.35
C16: 409000 | D16: 118118.75 | E16: 0.396
C17: MARRIED
C18: Excess over | D18: Withhold | E18: Percent
C19: 0 | D19: 0 | E19: 0
C20: 8450 | D20: 0 | E20: 0.1
C21: 26600 | D21: 1815 | E21: 0.15
C22: 82250 | D22: 10162.5 | E22: 0.25
C23: 157300 | D23: 28925 | E23: 0.28
C24: 235300 | D24: 50765 | E24: 0.33
C25: 413550 | D25: 109587.5 | E25: 0.35
C26: 466050 | D26: 127962.5 | E26: 0.396
C28: Percentage Method - 2014 Amount for One Withholding Allowance
C29: Source: IRS Publication 15, Table 5, pg 41
C30: http://www.irs.gov/pub/irs-pdf/p15.pdf
C31: Pay Period | D31: Periods per Year | E31: Allowance
C32: Weekly | D32: 52 | E32: 76
C33: Biweekly | D33: 26 | E33: 151.9
C34: Semimonthly | D34: 24 | E34: 164.6
C35: Monthly | D35: 12 | E35: 329.2
C36: Quarterly | D36: 4 | E36: 987.5
C37: Semiannually | D37: 2 | E37: 1975
C38: Annually | D38: 1 | E38: 3950
